Cogmind - Beta 9.1 @@@ ROGUE MODE // 2019.11.05 @ 01:56:47 Player: MrPainting Result: Self-destructed Performance ------------- Evolutions (1) 500 Regions Visited (2) 400 Robots Destroyed (3) 15 Value Destroyed (74) 74 Prototype IDs (0) 0 Alien Tech Used (0) 0 Bonus (0) 0 TOTAL SCORE: 989 Bonus ------- None Cogmind --------- Core Integrity 400/400 Matter 298/300 Energy 250/250 System Corruption 0% Temperature Cool (0) Location -9/Materials Parts ------- Power (1) Ion Engine Propulsion (3) Aluminum Leg Aluminum Leg Utility (3) Heat Sink Small Storage Unit Weapon (2) Light Assault Rifle Light Assault Rifle Inventory (6) Light Treads Light Treads Medium Matter Pod (7) Grenade Launcher Peak State ------------ Power Ion Engine Propulsion Aluminum Leg Aluminum Leg Utility Heat Sink Small Storage Unit Weapon Light Assault Rifle Light Assault Rifle Inventory Light Treads Light Treads Medium Matter Pod Grenade Launcher [Rating: 7] Favorites ----------- Power Ion Engine Engine Ion Engine Propulsion Aluminum Leg Leg Aluminum Leg Utility Small Storage Unit Device Heat Sink Storage Small Storage Unit Weapon Light Assault Rifle Ballistic Gun Light Assault Rifle Build | -11 -10 -9 ------- Run | Scr Mat Mat Slots Evolved 2 | . . 2 Power . | . . . Propulsion 1 | . . 1 Utility 1 | . . 1 Weapon . | . . . Parts Attached 8 | 4 4 . Power 2 | . 2 . Engine 2 | . 2 . Core . | . . . Reactor . | . . . Propulsion 2 | 2 . . Treads . | . . . Leg 2 | 2 . . Wheel . | . . . Hover . | . . . Flight . | . . . Utility 2 | . 2 . Device 1 | . 1 . Storage 1 | . 1 . Processor . | . . . Hackware . | . . . Protection . | . . . Artifact . | . . . Weapon 2 | 2 . . Energy Gun . | . . . Energy Cannon . | . . . Ballistic Gun 2 | 2 . . Ballistic Cannon . | . . . Launcher . | . . . Special Weapon . | . . . Impact Weapon . | . . . Slashing Weapon . | . . . Piercing Weapon . | . . . Special Melee Weapon . | . . . Unidentified Prototypes . | . . . Parts Lost 1 | . 1 . Power 1 | . 1 . Propulsion . | . . . Utility . | . . . Weapon . | . . . Highest Loss Streak 1 | . 1 . Average Slot Usage (%) 80 | . 83 77 Engine 11 | . 11 11 Leg 25 | . 28 22 Device 5 | . 1 11 Storage 12 | . 13 11 Ballistic Gun 25 | . 28 22 Naked Turns . | . . . Heaviest Build 12 | 2 12 12 Greatest Support 20 | 10 20 20 Greatest Overweight (x) . | . . . Average Overweight (x) . | . . . Largest Inventory Capacity 6 | 4 6 6 Average Capacity 5 | 4 5 6 Most Carried 6 | 4 6 4 Average Carried 3 | 1 3 4 Final Capacity 6 | 4 6 6 Final Carried 4 | 4 4 4 Class Distribution -------------------- 100% | Mutant Dominant Class ---------------- Mutant | -10/Materials Mutant | -9/Materials Resources | -11 -10 -9 ----------- Run | Scr Mat Mat Matter Collected 344 | 240 47 57 Remotely . | . . . Salvage Created 138 | . 81 57 Parts 9 | . 7 2 Haulers Intercepted . | . . . Recyclers Shooed 1 | . 1 . Parts Field Recycled . | . . . Retrieved Matter . | . . . Parts Self-Destructed . | . . . Prevented . | . . . Kills | -11 -10 -9 ------- Run | Scr Mat Mat Combat Hostiles Destroyed 2 | . 2 . Guns 2 | . 2 . Classes Destroyed 2 | . 1 1 Recycler 1 | . . 1 Grunt 2 | . 2 . Best Kill Streak 1 | . 1 1 Combat Bots Only 1 | . 1 . Max Kills in Single Turn 1 | . 1 1 Gunslinging . | . . . Exploded . | . . . Melee . | . . . Uniques/NPCs Destroyed . | . . . Combat | -11 -10 -9 -------- Run | Scr Mat Mat Damage Taken 219 | . 219 . Core 10 | . 10 . Absorbed by Shields . | . . . Core Remaining (%) 98 | 100 96 . Volleys Fired 32 | . 25 7 Largest 2 | . 2 2 Hottest 40 | . 40 40 Shots Fired 64 | . 50 14 Gun 64 | . 50 14 Cannon . | . . . Launcher . | . . . Special . | . . . Kinetic 64 | . 50 14 Thermal . | . . . Explosive . | . . . Electromagnetic . | . . . Robot Hit Streak 9 | . 7 9 Robot Miss Streak 3 | . 3 2 Penetration Max . | . . . Secondary Targets . | . . . Shots Hit Robots 35 | . 28 7 Core Hits 10 | . 7 3 Critical Hits . | . . . Critical Kills . | . . . Critical Parts Destroyed . | . . . Melee Attacks . | . . . Impact . | . . . Slashing . | . . . Piercing . | . . . Sneak Attacks . | . . . Combat Hostiles . | . . . Follow-up Attacks . | . . . Damage Inflicted 249 | . 181 68 Guns 249 | . 181 68 Cannons . | . . . Explosions . | . . . Melee . | . . . Ramming . | . . . Kinetic 249 | . 181 68 Thermal . | . . . Explosive . | . . . Electromagnetic . | . . . Impact . | . . . Slashing . | . . . Piercing . | . . . Highest Corruption 2 | . 2 . Average Corruption 2 | . 2 . Corruption Purged . | . . . Overload Shots . | . . . Overflow Damage . | . . . Projectiles . | . . . Explosions . | . . . Melee . | . . . Knockbacks . | . . . Impact . | . . . Kinetic . | . . . Secondary . | . . . Self-Inflicted Damage . | . . . Shots . | . . . Rammed . | . . . Targets Rammed . | . . . Kicked . | . . . Crushed . | . . . Highest Temperature 19 | . 19 . Average Temperature 8 | . 8 . Received Heat Transfer 120 | . 120 . Siege Activations . | . . . Robots Corrupted . | . . . Combat Hostiles . | . . . Parts Fried . | . . . Impact Corruptions . | . . . Robots Melted . | . . . Combat Hostiles . | . . . Parts Melted . | . . . Heat Transferred . | . . . Parts Sabotaged . | . . . Parts Stolen . | . . . Parts Stripped . | . . . Power Chain Reactions . | . . . Missiles Intercepted . | . . . Alert | -11 -10 -9 ------- Run | Scr Mat Mat Peak Influence 65 | . 65 62 Average Influence 31 | . 37 33 Maximum Alert Level . | . . . Low Security (%) 100 | . . . Level 1 . | . . . Level 2 . | . . . Level 3 . | . . . Level 4 . | . . . Level 5 . | . . . High Security . | . . . Max Security . | . . . Squads Dispatched 2 | . 2 . Investigation . | . . . Extermination . | . . . Reinforcement 2 | . 2 . Assault . | . . . Garrison . | . . . Intercept . | . . . Construction Impeded . | . . . Haulers Reinforced . | . . . Stealth | -11 -10 -9 --------- Run | Scr Mat Mat Distress Signals 1 | . 1 . Communications Jammed . | . . . Distress Signals . | . . . Times Spotted 12 | . 9 3 Peak Tracking Total 3 | . 3 3 Tactical Retreats . | . . . Traps | -11 -10 -9 ------- Run | Scr Mat Mat Traps Triggered 1 | . 1 . Indirectly . | . . . Trap Hack Attempts . | . . . Triggered . | . . . Disarmed . | . . . Reprogrammed . | . . . Reused . | . . . Traps Extracted . | . . . Installed . | . . . Triggered . | . . . Machines | -11 -10 -9 ---------- Run | Scr Mat Mat Machines Disabled . | . . . Max in Single Turn . | . . . Machines Sabotaged . | . . . Garrisons Compromised . | . . . Overloaded Fab Kills . | . . . Fab Network Shutdowns . | . . . Hacking | -11 -10 -9 --------- Run | Scr Mat Mat Machines Accessed . | . . . Terminals . | . . . Fabricators . | . . . Repair Stations . | . . . Recycling Units . | . . . Scanalyzers . | . . . Garrison Access . | . . . Total Hacks . | . . . Successful . | . . . Failed . | . . . Catastrophic . | . . . Database Lockouts . | . . . Manual . | . . . Terminals . | . . . Fabricators . | . . . Repair Stations . | . . . Recycling Units . | . . . Scanalyzers . | . . . Garrison Access . | . . . Terminal Hacks . | . . . Fabricator Hacks . | . . . Repair Station Hacks . | . . . Recycling Unit Hacks . | . . . Scanalyzer . | . . . Garrison Access Hacks . | . . . Unauthorized Hacks . | . . . Terminals . | . . . Fabricators . | . . . Repair Stations . | . . . Recycling Units . | . . . Scanalyzers . | . . . Garrison Access . | . . . Data Cores Recovered . | . . . Used . | . . . Hacking Detections . | . . . Full Trace Events . | . . . Feedback Events . | . . . Feedback Blocked . | . . . Robot Schematics Acquired . | . . . Robots Built . | . . . Matter . | . . . Time . | . . . Total Robot Build Rating . | . . . Part Schematics Acquired . | . . . Parts Built . | . . . Matter . | . . . Time . | . . . Total Part Build Rating . | . . . Parts Repaired . | . . . Time . | . . . Parts Recycled . | . . . Recycled Matter . | . . . Retrieved Matter . | . . . Retrieved Components . | . . . Parts Scanalyzed . | . . . Part Schematics Acquired . | . . . Parts Damaged . | . . . Bothacking | -11 -10 -9 ------------ Run | Scr Mat Mat Used RIF Installer . | . . . Robots Hacked . | . . . Non-combat . | . . . Combat . | . . . Robot Hacks Applied . | . . . Relay Couplers Released . | . . . Robots Rewired . | . . . Allies Hacked . | . . . Hacks Repelled . | . . . Allies | -11 -10 -9 -------- Run | Scr Mat Mat Total Allies . | . . . Largest Group . | . . . Highest-Rated Group . | . . . Highest-Rated Ally . | . . . Total Orders . | . . . Ally Attacks . | . . . Total Damage . | . . . Kills . | . . . Allies Corrupted . | . . . Allies Melted . | . . . Intel | -11 -10 -9 ------- Run | Scr Mat Mat Robot Analysis Total . | . . . Derelict Logs Recovered . | . . . Drone Launches . | . . . Drone Recoveries . | . . . Exploration | -11 -10 -9 ------------- Run | Scr Mat Mat Turns Passed 341 | 39 189 113 Spaces Moved 240 | 53 108 79 Core 68 | 50 18 . Treads . | . . . Legs 172 | 3 90 79 Wheels . | . . . Hover . | . . . Flight . | . . . Fastest Speed 50 | 50 50 120 Average Speed 100 | 53 108 120 Slowest Speed 120 | 120 120 120 Overloaded Moves . | . . . Propulsion Burnouts . | . . . Robots Hopped . | . . . Cave-ins Triggered . | . . . Exploration Rate (%) 14 | 3 26 14 Regions Visited 2 Branch Regions . Pre-discovered Areas . | . . . Known Exits Taken . | . . . Unknown Exits Taken 2 | 1 1 . Scrap Searched . | . . . Spaces Dug . | . . . Terrain Destroyed . | . . . Melee . | . . . Projectile . | . . . AOE . | . . . Actions | -11 -10 -9 --------- Run | Scr Mat Mat Total 286 | 60 140 86 Wait . | . . . Move 238 | 52 107 79 Hop . | . . . Pick Up 8 | 4 4 . Fast Attach 4 | 4 . . Attach 4 | . 4 . Detach . | . . . Swap . | . . . Drop . | . . . Fire 32 | . 25 7 Melee . | . . . Ram . | . . . Kick . | . . . Crush . | . . . Escape Stasis . | . . . Rewire . | . . . Trap . | . . . Miscellaneous . | . . . Route ------- -11/Scrapyard -10/Materials -9/Materials History --------- Turn | Location | Event 15 | -11/Scrapyard | Discovered new exit (range 15) 40 | -11/Scrapyard | Entered Materials 214 | -10/Materials | Discovered new exit (range 14) 229 | -10/Materials | Entered another Materials area 229 | -9/Materials | Evolved 2 slots: Propulsion x1, Utility x1 318 | -9/Materials | Build established: Mutant 342 | -9/Materials | Self-destructed Last Messages --------------- 00139_ O-16 Technician: "IFF HANDSHAKE FAILED. SECURING TERMINAL." 00145_ ALERT: Hostiles spotted, dispatching reinforcements to Terminal M005. 00177_ Door malfunctions. 00183_ Lgt. Ion Engine destroyed. 00187_ G-34 Mercenary destroyed. 00198_ Acquired Heat Sink. 00200_ Acquired Ion Engine. 00201_ R-06 Scavenger collects Sml. Laser. 00204_ Triggered Shock Trap. 00204_ The floor emits a surge of raw power. 00204_ System corrupted (+2). 00205_ R-06 Scavenger collects Sml. Laser. 00214_ EXIT=FOUND PARAMETERS=PROPULSION_1,UTILITY_1 LOCATION=UNKNOWN GOAL=ESCAPE 00318_ R-06 Scavenger destroyed. 00321_ Acquired 57 matter. 00325_ K-01 Serf collects debris. Map ----- +----------------------------------------------------+ | ?????????????????????????????????????????????????? | | ?????????????????????????????????????????????????? | | ?????????????????????????????????????????????????? | | ?????????????????????????????????????????????????? | | ?????????????????????????????????????????????????? | | ?????????????????????????????????????????????????? | | ?????????????????????????????????????????????????? | | ?????????????????????????????????????????????????? | | ?????????????????????????????????????????????????? | | ?????????????????????????????????????????????????? | | ?????????????????????????????????????????????????? | | ???????????????????????????????????? ????????????? | | ????????????????????????????##?????? ????????????? | | ???????????????????????????? ?????? ????????????? | | ???????????????????????????? ?????? ????????????? | | ???????????????????????????? ?????? ????????????? | | ???????????????????????????? ?????? ????????????? | | ???????????????????????????? #????? ????????????? | | ???????????????????????????? #????# #???????????? | | ???????????????????????????? #????+ #???????????? | | ???????????????????????????? #????# #???????????? | | ????????????????????????????#/#????# #???????????? | | ???????????????????########## #????# #?????????? | | ???????????????????# """ # ###### ##########+#? | | ???????????????????# "Y" + #? | | ???????????????????# @ # #? | | ???????????????????# # """ #? | | ???????????????????########## "R" #? | | ????????????????????????????#+#####= " " #? | | ????????????????????????????# ?? # ! #? | | ????????????????????????????# ???+ ! #? | | ????????????????????????????# "??# ##### #? | | ????????????????????????????# T??# """ #??????? | | ????????????????????????????# ""?# """ #??????? | | ????????????????????????????# ""?# """ #??????? | | ????????????????????????????# ?# #??????? | | ?????????????????????????????## #?# #??????? | | ???????????????????????????????##?# ##### #??????? | | ??????????????????????????????????# #???? #??????? | | ??????????????????????????????#####/####? #??????? | | ??????????????????????????????# #?????????? | | ??????????????????????????????# ""#?????????? | | ??????????????????????????????# = T"#?????????? | | ??????????????????????????????# ""#?????????? | | ??????????????????????????????# #?????????? | | ??????????????????????????????# """ +?????????? | | ??????????????????????????????# """ #?????????? | | ??????????????????????????????# """ #?????????? | | ??????????????????????######??# #?????????? | | ??????????????????????# #######+####?????????? | +----------------------------------------------------+ Best States ------------- Heat Dissipation 38 Energy Generation 10 Energy Capacity 250 Matter Stores 300 Matter Capacity 300 Sight Range 16 Terrain Scan Density 10 Evasion (%) 50 Item Schematics ----------------- None Robot Schematics ------------------ None Fabricated ------------ Nothing Alien Tech Used ----------------- None Achievements -------------- None Challenges ------------ None Game ------ Seed GravmagSupercompositeCorpse Manual? 0 Play Time 00:03:07 Cumulative 110.5 hours Start 2019.11.05 @ 01:54:13 End 2019.11.05 @ 01:56:47 Sessions 1 Manual Loads 0 Difficulty Rogue Special Mode None Game No. 193 Rogue 193 Adventurer 0 Explorer 0 Win Type - Total 0 Types 0/0/0/0/0/0/0 Lore% 33 Gallery% 49 Achievement% 34 Wizard Run 0 Options --------- ASCII 0 Keyboard 0 Movement Mouse Keybinds 0 Fullscreen 1 Font 18/SmallcapsGlow Map View 76x50 Tactical HUD 1 Map Filters NONE Filters NONE Steam 1 RUN: acd7b645-89f7-453a-8a13-d039b728150c